[Event "48th Indian U15-ch Girls 2023"]
[Site "Jalgaon"]
[Date "2023.12.31"]
[Round "7.6"]
[White "Sneha Halder"]
[Black "Ananya Raman"]
[Result "1-0"]
[ECO "A03"]
[WhiteElo "1766"]
[BlackElo "1505"]
[Annotator "NA RC"]
[PlyCount "107"]
[EventDate "2023.12.30"]
[EventType "swiss"]
[EventCountry "IND"]
[SourceTitle "playchess.com"]
[Source "ChessBase"]
[SourceQuality "1"]
[TimeControl "5400+30"]

1. f4 {[%emt 0:00:17]} d5 {[%emt 0:03:43]} 2. Nf3 {[%emt 0:00:28]} Nf6 {[%emt 0:01:17]} 3. g3 {[%emt 0:00:02]} c5 {[%emt 0:02:15]} 4. Bg2 {[%emt 0:00:04]} Nc6 {[%emt 0:02:28]} 5. O-O {[%emt 0:00:07]} e6 {[%emt 0:01:28]} 6. b3 {[%emt 0:00:07]} Be7 {[%emt 0:01:43]} 7. Bb2 {[%emt 0:00:10]} O-O {[%emt 0:01:54]} 8. e3 {[%emt 0:00:55]} b5 {[%emt 0:06:33]} 9. h3 {[%emt 0:02:31]} Bb7 {[%emt 0:03:26]} 10. d3 {[%emt 0:00:35]} c4 {[%emt 0:06:09]} 11. Ne5 {[%emt 0:04:26]} cxd3 {[%emt 0:04:20]} 12. Qxd3 {[%emt 0:06:39]} a6 {[%emt 0:03:06]} 13. Nxc6 {[%emt 0:02:53]} Bxc6 {[%emt 0:00:25]} 14. Nd2 {[%emt 0:00:31]} Rc8 {[%emt 0:05:06]} 15. g4 {[%emt 0:03:15]} Nd7 {[%emt 0:09:56]} 16. g5 {[%emt 0:05:13]} Qb6 {[%emt 0:04:41]} 17. a3 {[%emt 0:08:40]} a5 {[%emt 0:09:46]} 18. Nf3 {[%emt 0:12:32]} b4 {[%emt 0:01:44]} 19. a4 {[%emt 0:00:24]} Bb7 {[%emt 0:01:00]} 20. Rfe1 {[%emt 0:00:41]} Ba6 {[%emt 0:01:26]} 21. Qd2 {[%emt 0:00:02]} Rc7 {[%emt 0:02:13]} 22. h4 {[%emt 0:00:58]} Rfc8 {[%emt 0:01:52]} 23. Rac1 {[%emt 0:00:02]} Bf8 {[%emt 0:01:58]} 24. h5 {[%emt 0:01:15]} f5 {[%emt 0:07:18]} 25. gxf6 {[%emt 0:04:57]} Nxf6 {[%emt 0:00:13]} 26. Nd4 {[%emt 0:02:07]} Re8 {[%emt 0:02:22]} 27. f5 {[%emt 0:05:02]} exf5 {[%emt 0:01:48]} 28. Nxf5 {[%emt 0:00:14]} Nxh5 {[%emt 0:01:52]} 29. Qxd5+ {[%emt 0:04:22]} Kh8 {[%emt 0:00:07]} 30. Nh4 {[%emt 0:05:05]} Nf4 {[%emt 0:01:27]} 31. Qg5 {[%emt 0:04:24]} Rxe3 {[%emt 0:02:32]} 32. Kh2 {[%emt 0:07:09]} Nxg2 {[%emt 0:04:21]} 33. Nxg2 {[%emt 0:00:53]} Bd6+ {[%emt 0:01:03]} 34. Nf4 {[%emt 0:00:01]} Rf7 {[%emt 0:01:57]} 35. Be5 {[%emt 0:01:13]} Rxe5 {[%emt 0:03:10]} 36. Rxe5 {[%emt 0:00:01]} Bxe5 {[%emt 0:00:17]} 37. Qxe5 {[%emt 0:00:04]} Qh6+ {[%emt 0:00:43]} 38. Kg3 {[%emt 0:00:20]} Rf8 {[%emt 0:01:00]} 39. Rd1 {[%emt 0:01:16]} Qb6 {[%emt 0:00:45]} 40. Qe7 {[%emt 0:01:16]} Rc8 {[%emt 0:00:29]} 41. Rd7 {[%emt 0:06:04]} Qg1+ {[%emt 0:00:07]} 42. Ng2 {[%emt 0:00:03]} Rc3+ {[%emt 0:00:04]} 43. Rd3 {[%emt 0:00:14]} Rxd3+ {[%emt 0:00:17]} 44. cxd3 {[%emt 0:00:00]} h6 {[%emt 0:00:21]} 45. Qe8+ {[%emt 0:00:07]} Kh7 {[%emt 0:00:05]} 46. Qe4+ {[%emt 0:00:03]} Kh8 {[%emt 0:01:14]} 47. Qa8+ {[%emt 0:00:16]} Kh7 {[%emt 0:00:04]} 48. Qxa6 {[%emt 0:00:17]} Qd4 {[%emt 0:01:09]} 49. Qc4 {[%emt 0:00:34]} Qd6+ {[%emt 0:00:16]} 50. Kf3 {[%emt 0:00:01]} g5 {[%emt 0:00:50]} 51. Qe4+ {[%emt 0:00:38]} Kg7 {[%emt 0:00:14]} 52. Ne3 {[%emt 0:01:29]} Qf6+ {[%emt 0:00:44]} 53. Kg4 {[%emt 0:01:19]} Qb6 {[%emt 0:01:08]} 54. Nf5+ {[%emt 0:00:09]} 1-0

[Event "48th Indian U15-ch Girls 2023"]
[Site "Jalgaon"]
[Date "2023.12.31"]
[Round "7.7"]
[White "Sherali Pattnaik"]
[Black "Arya G Mallar"]
[Result "1-0"]
[ECO "C06"]
[WhiteElo "1575"]
[BlackElo "1460"]
[Annotator "NA RC"]
[PlyCount "127"]
[EventDate "2023.12.30"]
[EventType "swiss"]
[EventCountry "IND"]
[SourceTitle "playchess.com"]
[Source "ChessBase"]
[SourceQuality "1"]
[TimeControl "5400+30"]

1. e4 {[%emt 0:01:24]} e6 {[%emt 0:00:18]} 2. d4 {[%emt 0:00:04]} d5 {[%emt 0:00:05]} 3. Nd2 {[%emt 0:00:09]} Nf6 {[%emt 0:00:07]} 4. e5 {[%emt 0:00:05]} Nfd7 {[%emt 0:00:05]} 5. Bd3 {[%emt 0:00:04]} c5 {[%emt 0:00:17]} 6. c3 {[%emt 0:00:08]} Nc6 {[%emt 0:00:05]} 7. Ne2 {[%emt 0:00:04]} cxd4 {[%emt 0:00:08]} 8. cxd4 {[%emt 0:00:14]} f6 {[%emt 0:00:15]} 9. exf6 {[%emt 0:00:44]} Nxf6 {[%emt 0:00:08]} 10. O-O {[%emt 0:00:14]} Bd6 {[%emt 0:00:24]} 11. Nf3 {[%emt 0:00:20]} Qc7 {[%emt 0:00:09]} 12. Re1 {[%emt 0:01:26]} O-O {[%emt 0:02:17]} 13. Nc3 {[%emt 0:07:35]} a6 {[%emt 0:05:45]} 14. Bc2 {[%emt 0:13:56]} g6 {[%emt 0:04:42]} 15. Bh6 {[%emt 0:06:06]} Re8 {[%emt 0:13:29]} 16. Bg5 {[%emt 0:05:26]} Rf8 {[%emt 0:06:14]} 17. Bh6 {[%emt 0:01:09]} Re8 {[%emt 0:04:22]} 18. h3 {[%emt 0:01:28]} Bd7 {[%emt 0:04:02]} 19. Qd2 {[%emt 0:01:14]} Nh5 {[%emt 0:02:02]} 20. Rac1 {[%emt 0:06:04]} Bf4 {[%emt 0:05:28]} 21. Bxf4 {[%emt 0:00:33]} Qxf4 {[%emt 0:06:27]} 22. Qxf4 {[%emt 0:00:25]} Nxf4 {[%emt 0:00:01]} 23. Na4 {[%emt 0:00:37]} Nb4 {[%emt 0:03:27]} 24. Nb6 {[%emt 0:03:18]} Rad8 {[%emt 0:09:37]} 25. Ne5 {[%emt 0:04:55]} Bb5 {[%emt 0:01:43]} 26. a3 {[%emt 0:00:00]} Nbd3 {[%emt 0:04:10]} 27. Bxd3 {[%emt 0:00:47]} Bxd3 {[%emt 0:01:26]} 28. Rc7 {[%emt 0:00:40]} Rf8 {[%emt 0:01:42]} 29. Re3 {[%emt 0:03:36]} Bb5 {[%emt 0:03:12]} 30. a4 {[%emt 0:00:14]} Ne2+ {[%emt 0:01:54]} 31. Kh2 {[%emt 0:00:30]} Nxd4 {[%emt 0:00:30]} 32. axb5 {[%emt 0:00:26]} Rxf2 {[%emt 0:00:43]} 33. Rxb7 {[%emt 0:01:39]} Nxb5 {[%emt 0:01:33]} 34. Nc6 {[%emt 0:00:23]} Rdf8 {[%emt 0:01:52]} 35. Rxe6 {[%emt 0:00:58]} Rxb2 {[%emt 0:01:54]} 36. Ree7 {[%emt 0:01:21]} Rff2 {[%emt 0:00:11]} 37. Re8+ {[%emt 0:01:27]} Rf8 {[%emt 0:00:08]} 38. Rxf8+ {[%emt 0:00:02]} Kxf8 {[%emt 0:00:09]} 39. Nxd5 {[%emt 0:00:02]} Rd2 {[%emt 0:01:14]} 40. Ndb4 {[%emt 0:01:01]} a5 {[%emt 0:00:21]} 41. Rxb5 {[%emt 0:00:31]} axb4 {[%emt 0:00:06]} 42. Rxb4 {[%emt 0:00:01]} Rd7 {[%emt 0:01:03]} 43. Rb8+ {[%emt 0:01:07]} Kg7 {[%emt 0:00:08]} 44. Kg3 {[%emt 0:03:14]} h5 {[%emt 0:01:38]} 45. Ne5 {[%emt 0:00:40]} Re7 {[%emt 0:02:06]} 46. Kf4 {[%emt 0:00:18]} g5+ {[%emt 0:01:43]} 47. Kf5 {[%emt 0:00:20]} g4 {[%emt 0:00:40]} 48. hxg4 {[%emt 0:00:10]} hxg4 {[%emt 0:00:02]} 49. Nxg4 {[%emt 0:00:27]} Re2 {[%emt 0:00:14]} 50. Rb7+ {[%emt 0:00:09]} Kf8 {[%emt 0:00:32]} 51. g3 {[%emt 0:00:10]} Rg2 {[%emt 0:00:17]} 52. Kf4 {[%emt 0:00:20]} Ra2 {[%emt 0:00:38]} 53. Nf6 {[%emt 0:00:34]} Rf2+ {[%emt 0:00:12]} 54. Kg5 {[%emt 0:00:02]} Rh2 {[%emt 0:01:04]} 55. Nh5 {[%emt 0:00:22]} Ra2 {[%emt 0:00:18]} 56. Rb6 {[%emt 0:01:22]} Ra7 {[%emt 0:00:41]} 57. g4 {[%emt 0:00:08]} Rc7 {[%emt 0:00:25]} 58. Kh6 {[%emt 0:00:21]} Rc8 {[%emt 0:01:27]} 59. g5 {[%emt 0:00:06]} Kg8 {[%emt 0:00:49]} 60. g6 {[%emt 0:00:21]} Rf8 {[%emt 0:00:34]} 61. g7 {[%emt 0:00:13]} Rf6+ {[%emt 0:00:20]} 62. Nxf6+ {[%emt 0:00:01]} Kf7 {[%emt 0:00:10]} 63. g8=Q+ {[%emt 0:00:08]} Ke7 {[%emt 0:00:04]} 64. Qe8# {[%emt 0:00:03]} 1-0

[Event "48th Indian U15-ch Girls 2023"]
[Site "Jalgaon"]
[Date "2023.12.31"]
[Round "7.8"]
[White "Akshaya Sathi"]
[Black "Hanya Shah"]
[Result "1-0"]
[ECO "B01"]
[WhiteElo "1542"]
[BlackElo "1429"]
[Annotator "NA RC"]
[PlyCount "125"]
[EventDate "2023.12.30"]
[EventType "swiss"]
[EventCountry "IND"]
[SourceTitle "playchess.com"]
[Source "ChessBase"]
[SourceQuality "1"]
[TimeControl "5400+30"]

1. e4 {[%emt 0:02:27]} Nf6 {[%emt 0:00:20]} 2. e5 {[%emt 0:00:35]} Nd5 {[%emt 0:00:28]} 3. d4 {[%emt 0:00:07]} d6 {[%emt 0:00:06]} 4. Nf3 {[%emt 0:00:13]} dxe5 {[%emt 0:00:25]} 5. Nxe5 {[%emt 0:00:31]} g6 {[%emt 0:00:08]} 6. Bc4 {[%emt 0:06:22]} c6 {[%emt 0:00:31]} 7. O-O {[%emt 0:01:04]} Bg7 {[%emt 0:00:16]} 8. Re1 {[%emt 0:01:23]} O-O {[%emt 0:00:20]} 9. c3 {[%emt 0:03:12]} Nd7 {[%emt 0:02:40]} 10. Nf3 {[%emt 0:04:40]} N7b6 {[%emt 0:01:24]} 11. Bb3 {[%emt 0:01:41]} Bg4 {[%emt 0:02:36]} 12. Nbd2 {[%emt 0:02:23]} a5 {[%emt 0:10:42]} 13. a4 {[%emt 0:00:58]} Qc7 {[%emt 0:02:59]} 14. h3 {[%emt 0:02:14]} Bxf3 {[%emt 0:00:09]} 15. Nxf3 {[%emt 0:00:18]} Rad8 {[%emt 0:01:47]} 16. Qc2 {[%emt 0:04:08]} c5 {[%emt 0:04:34]} 17. dxc5 {[%emt 0:02:21]} Qxc5 {[%emt 0:01:04]} 18. Bg5 {[%emt 0:01:42]} Rfe8 {[%emt 0:06:40]} 19. Rad1 {[%emt 0:01:43]} Rc8 {[%emt 0:06:14]} 20. Qe4 {[%emt 0:10:17]} e6 {[%emt 0:00:52]} 21. Qh4 {[%emt 0:03:21]} Qf8 {[%emt 0:07:26]} 22. Nh2 {[%emt 0:14:57]} h6 {[%emt 0:15:12]} 23. Bc1 {[%emt 0:00:19]} Ne7 {[%emt 0:01:14]} 24. Qe4 {[%emt 0:05:04]} Ned5 {[%emt 0:03:33]} 25. Nf3 {[%emt 0:04:47]} Kh7 {[%emt 0:05:19]} 26. Ne5 {[%emt 0:01:47]} Rc5 {[%emt 0:04:13]} 27. Nd3 {[%emt 0:06:26]} Rc6 {[%emt 0:01:29]} 28. Nf4 {[%emt 0:00:47]} f5 {[%emt 0:03:01]} 29. Qf3 {[%emt 0:01:52]} Nxf4 {[%emt 0:00:34]} 30. Bxf4 {[%emt 0:00:26]} e5 {[%emt 0:00:29]} 31. Be3 {[%emt 0:01:43]} e4 {[%emt 0:01:29]} 32. Qe2 {[%emt 0:00:59]} f4 {[%emt 0:01:39]} 33. Bd4 {[%emt 0:00:37]} Bf6 {[%emt 0:04:36]} 34. Qb5 {[%emt 0:03:36]} Bxd4 {[%emt 0:01:03]} 35. Rxd4 {[%emt 0:00:05]} e3 {[%emt 0:00:57]} 36. Qxa5 {[%emt 0:02:27]} Qe7 {[%emt 0:02:18]} 37. c4 {[%emt 0:05:15]} Qh4 {[%emt 0:02:38]} 38. Re2 {[%emt 0:00:41]} Qf6 {[%emt 0:03:18]} 39. Qc3 {[%emt 0:00:48]} Qg5 {[%emt 0:01:19]} 40. Kf1 {[%emt 0:01:30]} Qf5 {[%emt 0:03:00]} 41. a5 {[%emt 0:02:15]} Nd7 {[%emt 0:01:20]} 42. Bc2 {[%emt 0:01:26]} Qf7 {[%emt 0:00:29]} 43. Ba4 {[%emt 0:00:32]} Rc7 {[%emt 0:00:28]} 44. Bxd7 {[%emt 0:01:13]} Rxd7 {[%emt 0:00:01]} 45. Rxd7 {[%emt 0:00:05]} Qxd7 {[%emt 0:00:14]} 46. fxe3 {[%emt 0:00:28]} f3 {[%emt 0:00:21]} 47. Rd2 {[%emt 0:00:45]} Qf5 {[%emt 0:00:37]} 48. g4 {[%emt 0:00:42]} Qe6 {[%emt 0:01:19]} 49. Kf2 {[%emt 0:00:34]} h5 {[%emt 0:00:22]} 50. Qd4 {[%emt 0:00:16]} Re7 {[%emt 0:00:21]} 51. Rd1 {[%emt 0:00:49]} Rf7 {[%emt 0:00:46]} 52. Rg1 {[%emt 0:00:44]} Rd7 {[%emt 0:00:27]} 53. Qc3 {[%emt 0:00:21]} Qe4 {[%emt 0:00:12]} 54. gxh5 {[%emt 0:00:24]} Rd3 {[%emt 0:00:47]} 55. hxg6+ {[%emt 0:00:04]} Kg8 {[%emt 0:00:05]} 56. Qc1 {[%emt 0:00:11]} Kg7 {[%emt 0:00:48]} 57. Rg4 {[%emt 0:00:37]} Qe6 {[%emt 0:00:35]} 58. Kxf3 {[%emt 0:01:14]} Qc6+ {[%emt 0:00:34]} 59. Ke2 {[%emt 0:00:20]} Rd6 {[%emt 0:00:13]} 60. Qc3+ {[%emt 0:00:07]} Kg8 {[%emt 0:00:06]} 61. Qe5 {[%emt 0:00:57]} Qd7 {[%emt 0:00:25]} 62. Rd4 {[%emt 0:00:23]} Rxd4 {[%emt 0:00:12]} 63. exd4 {[%emt 0:00:22]} 1-0

[Event "48th Indian U15-ch Girls 2023"]
[Site "Jalgaon"]
[Date "2023.12.31"]
[Round "7.9"]
[White "Alana Julieta Menezes Andrade"]
[Black "Krishika Garg"]
[Result "0-1"]
[ECO "B13"]
[WhiteElo "1218"]
[BlackElo "1529"]
[Annotator "NA RC"]
[PlyCount "106"]
[EventDate "2023.12.30"]
[EventType "swiss"]
[EventCountry "IND"]
[SourceTitle "playchess.com"]
[Source "ChessBase"]
[SourceQuality "1"]
[TimeControl "5400+30"]

1. e4 {[%emt 0:00:04]} c6 {[%emt 0:00:26]} 2. d4 {[%emt 0:00:09]} d5 {[%emt 0:00:05]} 3. exd5 {[%emt 0:00:07]} cxd5 {[%emt 0:00:05]} 4. Bd3 {[%emt 0:00:07]} Nc6 {[%emt 0:00:06]} 5. c3 {[%emt 0:00:09]} Qc7 {[%emt 0:00:04]} 6. Nf3 {[%emt 0:00:10]} Bg4 {[%emt 0:00:07]} 7. Be3 {[%emt 0:00:50]} e6 {[%emt 0:00:18]} 8. Nbd2 {[%emt 0:00:16]} Bd6 {[%emt 0:00:06]} 9. h3 {[%emt 0:00:15]} Bh5 {[%emt 0:00:06]} 10. O-O {[%emt 0:00:17]} Nge7 {[%emt 0:00:04]} 11. Rc1 {[%emt 0:00:49]} O-O {[%emt 0:03:29]} 12. Qc2 {[%emt 0:00:45]} Bg6 {[%emt 0:02:50]} 13. Rfe1 {[%emt 0:00:53]} Rfe8 {[%emt 0:02:07]} 14. Nh4 {[%emt 0:01:10]} Bxd3 {[%emt 0:03:43]} 15. Qxd3 {[%emt 0:00:11]} Rad8 {[%emt 0:00:22]} 16. Bg5 {[%emt 0:04:34]} h6 17. Bxe7 {[%emt 0:01:59]} Bxe7 {[%emt 0:16:42]} 18. Nhf3 {[%emt 0:00:26]} Bf6 {[%emt 0:00:06]} 19. Nf1 {[%emt 0:00:55]} Na5 {[%emt 0:09:58]} 20. Ne3 {[%emt 0:03:08]} Nc4 {[%emt 0:01:55]} 21. Nxc4 {[%emt 0:02:00]} dxc4 {[%emt 0:00:05]} 22. Qc2 {[%emt 0:01:03]} Rd5 {[%emt 0:01:57]} 23. Re4 {[%emt 0:00:36]} b5 {[%emt 0:03:37]} 24. Rce1 {[%emt 0:01:12]} Red8 {[%emt 0:03:01]} 25. Rg4 {[%emt 0:00:52]} Qd6 {[%emt 0:10:20]} 26. Nd2 {[%emt 0:02:39]} e5 {[%emt 0:03:59]} 27. Ne4 {[%emt 0:01:13]} Qb6 {[%emt 0:00:43]} 28. Nxf6+ {[%emt 0:01:18]} Qxf6 {[%emt 0:00:01]} 29. Rge4 {[%emt 0:01:07]} Qf5 {[%emt 0:05:31]} 30. Rd1 {[%emt 0:02:40]} Kh7 {[%emt 0:08:25]} 31. Qe2 {[%emt 0:02:05]} exd4 {[%emt 0:00:06]} 32. Rexd4 {[%emt 0:00:29]} Rxd4 {[%emt 0:02:14]} 33. Rxd4 {[%emt 0:00:07]} Rxd4 {[%emt 0:02:23]} 34. cxd4 {[%emt 0:00:07]} Qb1+ {[%emt 0:00:02]} 35. Kh2 {[%emt 0:00:14]} Qd3 {[%emt 0:00:32]} 36. Qe3 {[%emt 0:03:04]} Qxe3 {[%emt 0:01:29]} 37. fxe3 {[%emt 0:00:12]} b4 {[%emt 0:00:04]} 38. d5 {[%emt 0:00:38]} Kg6 {[%emt 0:00:03]} 39. d6 {[%emt 0:00:24]} Kf6 {[%emt 0:00:03]} 40. e4 {[%emt 0:00:05]} c3 {[%emt 0:00:05]} 41. bxc3 {[%emt 0:00:11]} bxc3 {[%emt 0:00:03]} 42. e5+ {[%emt 0:00:29]} Ke6 {[%emt 0:00:07]} 43. a4 {[%emt 0:00:14]} c2 {[%emt 0:00:02]} 44. a5 {[%emt 0:00:06]} c1=Q {[%emt 0:00:10]} 45. a6 {[%emt 0:00:07]} Qf4+ {[%emt 0:00:03]} 46. Kg1 {[%emt 0:00:08]} Qxe5 {[%emt 0:00:04]} 47. h4 {[%emt 0:00:14]} Kxd6 {[%emt 0:00:02]} 48. h5 {[%emt 0:00:13]} Kd5 {[%emt 0:00:03]} 49. g4 {[%emt 0:00:09]} Qe2 {[%emt 0:00:07]} 50. g5 {[%emt 0:00:08]} Ke4 {[%emt 0:00:03]} 51. g6 {[%emt 0:00:11]} fxg6 {[%emt 0:00:04]} 52. hxg6 {[%emt 0:00:16]} Kf3 {[%emt 0:00:02]} 53. Kh1 {[%emt 0:00:10]} Qg2# {[%emt 0:00:02]} 0-1

[Event "48th Indian U15-ch Girls 2023"]
[Site "Jalgaon"]
[Date "2023.12.31"]
[Round "7.10"]
[White "Asmita Avijit Ray"]
[Black "Magizhini M"]
[Result "1/2-1/2"]
[ECO "E69"]
[WhiteElo "1470"]
[BlackElo "1389"]
[Annotator "NA RC"]
[PlyCount "163"]
[EventDate "2023.12.30"]
[EventType "swiss"]
[EventCountry "IND"]
[SourceTitle "playchess.com"]
[Source "ChessBase"]
[SourceQuality "1"]
[TimeControl "5400+30"]

1. d4 Nf6 2. c4 g6 3. g3 Bg7 4. Bg2 O-O 5. Nc3 {[%emt 0:02:30]} d6 {[%emt 0:02:30]} 6. Nf3 {[%emt 0:00:30]} Nbd7 {[%emt 0:00:30]} 7. O-O {[%emt 0:00:30]} e5 {[%emt 0:00:30]} 8. e4 {[%emt 0:00:30]} c6 {[%emt 0:00:30]} 9. h3 {[%emt 0:00:30]} Qc7 {[%emt 0:00:30]} 10. b3 {[%emt 0:00:30]} Re8 {[%emt 0:00:30]} 11. Bb2 {[%emt 0:00:30]} exd4 {[%emt 0:00:30]} 12. Nxd4 {[%emt 0:00:30]} Nc5 {[%emt 0:00:30]} 13. Re1 {[%emt 0:00:30]} a5 {[%emt 0:00:30]} 14. Qc2 {[%emt 0:00:30]} Bd7 {[%emt 0:00:30]} 15. Rad1 {[%emt 0:00:30]} Rad8 {[%emt 0:00:30]} 16. a3 {[%emt 0:00:30]} h6 {[%emt 0:00:30]} 17. Rd2 {[%emt 0:00:30]} Nh7 {[%emt 0:00:30]} 18. b4 {[%emt 0:00:30]} Ne6 {[%emt 0:00:30]} 19. Nb3 {[%emt 0:00:30]} axb4 {[%emt 0:00:30]} 20. axb4 {[%emt 0:00:30]} Neg5 {[%emt 0:00:30]} 21. h4 {[%emt 0:00:30]} Ne6 {[%emt 0:00:30]} 22. Red1 {[%emt 0:00:30]} Bc8 {[%emt 0:00:30]} 23. b5 {[%emt 0:00:30]} Nf6 {[%emt 0:00:30]} 24. Ba3 {[%emt 0:00:30]} Bf8 {[%emt 0:00:30]} 25. Qb2 {[%emt 0:00:30]} Ng4 {[%emt 0:00:30]} 26. Na4 {[%emt 0:00:30]} c5 {[%emt 0:00:30]} 27. Qc2 {[%emt 0:00:30]} b6 {[%emt 0:00:30]} 28. Bb2 {[%emt 0:00:30]} Bg7 {[%emt 0:00:30]} 29. Nc3 {[%emt 0:00:30]} Nf6 {[%emt 0:00:30]} 30. f4 {[%emt 0:00:30]} Bb7 {[%emt 0:00:30]} 31. e5 {[%emt 0:00:30]} dxe5 {[%emt 0:00:30]} 32. Nd5 {[%emt 0:00:30]} Nxd5 {[%emt 0:00:30]} 33. cxd5 {[%emt 0:00:30]} Nd4 {[%emt 0:00:30]} 34. Nxd4 {[%emt 0:00:30]} exd4 {[%emt 0:00:30]} 35. Bxd4 {[%emt 0:00:30]} Bxd4+ {[%emt 0:00:30]} 36. Rxd4 {[%emt 0:00:30]} Qd7 {[%emt 0:00:30]} 37. Re4 {[%emt 0:00:30]} Rxe4 {[%emt 0:00:30]} 38. Bxe4 {[%emt 0:00:30]} f5 {[%emt 0:00:30]} 39. Bd3 {[%emt 0:00:30]} Qe7 {[%emt 0:00:30]} 40. Bc4 {[%emt 0:00:30]} Qe3+ {[%emt 0:00:30]} 41. Kh2 {[%emt 0:00:30]} Kh7 {[%emt 0:00:30]} 42. Qd2 {[%emt 0:00:30]} Qe4 {[%emt 0:00:30]} 43. Qa2 {[%emt 0:00:30]} Ra8 {[%emt 0:00:30]} 44. Qb3 {[%emt 0:00:30]} h5 {[%emt 0:00:30]} 45. Qc3 {[%emt 0:00:30]} Re8 {[%emt 0:00:30]} 46. Ra1 {[%emt 0:00:30]} Re7 {[%emt 0:00:30]} 47. Rd1 {[%emt 0:00:30]} Re8 {[%emt 0:00:30]} 48. Qd3 {[%emt 0:00:30]} Qe7 {[%emt 0:00:30]} 49. d6 {[%emt 0:00:30]} Qd7 {[%emt 0:00:30]} 50. Bd5 {[%emt 0:00:30]} Bxd5 {[%emt 0:00:30]} 51. Qxd5 {[%emt 0:00:30]} Qxb5 {[%emt 0:00:30]} 52. Rg1 {[%emt 0:00:30]} Re2+ {[%emt 0:00:30]} 53. Kh3 {[%emt 0:00:30]} Qb2 {[%emt 0:00:30]} 54. Rg2 {[%emt 0:00:30]} Kg7 {[%emt 0:00:30]} 55. d7 {[%emt 0:00:30]} Rxg2 {[%emt 0:00:30]} 56. Qxg2 {[%emt 0:00:30]} Qd4 {[%emt 0:00:30]} 57. Qb7 {[%emt 0:00:30]} Kh6 {[%emt 0:00:30]} 58. Qc8 {[%emt 0:00:30]} Qa1 {[%emt 0:00:30]} 59. Qf8+ {[%emt 0:00:30]} Kh7 {[%emt 0:00:30]} 60. Qe7+ {[%emt 0:00:30]} Kh6 {[%emt 0:00:30]} 61. Kg2 {[%emt 0:00:30]} Qb2+ {[%emt 0:00:30]} 62. Kf3 {[%emt 0:00:30]} Qb3+ {[%emt 0:00:30]} 63. Kf2 {[%emt 0:00:30]} Qb2+ {[%emt 0:00:30]} 64. Kf1 {[%emt 0:00:30]} Qb1+ {[%emt 0:00:30]} 65. Kg2 {[%emt 0:00:30]} Qa2+ {[%emt 0:00:30]} 66. Kh3 {[%emt 0:00:30]} Qa1 {[%emt 0:00:30]} 67. Qe2 {[%emt 0:00:30]} Qh1+ {[%emt 0:00:30]} 68. Qh2 {[%emt 0:00:30]} Qd5 {[%emt 0:00:30]} 69. Qb2 {[%emt 0:00:30]} Kh7 {[%emt 0:00:30]} 70. Kh2 {[%emt 0:00:30]} Qxd7 {[%emt 0:00:30]} 71. Qxb6 {[%emt 0:00:30]} Qe7 {[%emt 0:00:30]} 72. Qc6 {[%emt 0:00:30]} Qe2+ {[%emt 0:00:30]} 73. Kg1 {[%emt 0:00:30]} Qe1+ {[%emt 0:00:30]} 74. Kh2 {[%emt 0:00:30]} Qe2+ {[%emt 0:00:30]} 75. Kg1 {[%emt 0:00:30]} c4 {[%emt 0:00:30]} 76. Qf6 {[%emt 0:00:30]} Qe8 {[%emt 0:00:30]} 77. Kf2 {[%emt 0:00:30]} Qd7 {[%emt 0:00:30]} 78. Ke1 {[%emt 0:00:30]} Qd3 {[%emt 0:00:30]} 79. Qf7+ {[%emt 0:00:30]} Kh6 {[%emt 0:00:30]} 80. Qf8+ {[%emt 0:00:30]} Kh7 {[%emt 0:00:30]} 81. Qf7+ {[%emt 0:00:30]} Kh6 {[%emt 0:00:30]} 82. Qf8+ {[%emt 0:00:30]} 1/2-1/2

[Event "48th Indian U15-ch Girls 2023"]
[Site "Jalgaon"]
[Date "2024.01.01"]
[Round "8.1"]
[White "Shubhi Gupta"]
[Black "Bhat Sannidhi Ramakrishna"]
[Result "1-0"]
[ECO "B00"]
[WhiteElo "1902"]
[BlackElo "1637"]
[Annotator "RC"]
[PlyCount "95"]
[EventDate "2023.12.30"]
[EventType "swiss"]
[EventCountry "IND"]
[SourceTitle "playchess.com"]
[Source "ChessBase"]
[SourceQuality "1"]
[TimeControl "5400+30"]

1. d4 {[%emt 0:01:45]} Nc6 {[%emt 0:00:22]} 2. d5 {[%emt 0:01:24]} Nb8 {[%emt 0:00:11]} 3. e4 {[%emt 0:00:15]} d6 {[%emt 0:00:08]} 4. Nc3 {[%emt 0:00:37]} Nf6 {[%emt 0:00:55]} 5. h3 {[%emt 0:01:22]} g6 {[%emt 0:02:56]} 6. Be3 {[%emt 0:01:52]} Bg7 {[%emt 0:02:23]} 7. Be2 {[%emt 0:02:52]} c6 {[%emt 0:05:25]} 8. Nf3 {[%emt 0:11:16]} Nbd7 {[%emt 0:20:17]} 9. Qd2 {[%emt 0:04:12]} h5 {[%emt 0:01:12]} 10. dxc6 {[%emt 0:10:23]} bxc6 {[%emt 0:00:23]} 11. Bc4 {[%emt 0:01:11]} O-O {[%emt 0:20:24]} 12. Bh6 {[%emt 0:08:20]} Nb6 {[%emt 0:02:19]} 13. Bb3 {[%emt 0:00:31]} Ba6 {[%emt 0:05:43]} 14. g4 {[%emt 0:03:52]} Nc4 {[%emt 0:07:23]} 15. Bxc4 {[%emt 0:00:15]} Bxh6 {[%emt 0:05:29]} 16. Qxh6 {[%emt 0:01:17]} Bxc4 {[%emt 0:00:05]} 17. Ng5 {[%emt 0:00:24]} Qb6 {[%emt 0:02:21]} 18. Rb1 {[%emt 0:02:32]} Qd4 {[%emt 0:04:23]} 19. gxh5 {[%emt 0:01:23]} Rab8 {[%emt 0:00:25]} 20. Nd1 {[%emt 0:07:01]} Rb5 {[%emt 0:02:40]} 21. Rg1 {[%emt 0:01:21]} Rxg5 {[%emt 0:04:25]} 22. Qxg5 {[%emt 0:00:08]} Qxe4+ {[%emt 0:00:57]} 23. Qe3 {[%emt 0:01:10]} Qd5 {[%emt 0:07:36]} 24. hxg6 {[%emt 0:00:25]} fxg6 {[%emt 0:00:05]} 25. Nc3 {[%emt 0:00:13]} Qf7 {[%emt 0:03:06]} 26. b3 {[%emt 0:00:09]} Be6 {[%emt 0:00:39]} 27. Kd2 {[%emt 0:00:22]} Nh5 {[%emt 0:00:38]} 28. Ne2 {[%emt 0:01:32]} Bd5 {[%emt 0:01:02]} 29. Rbe1 {[%emt 0:00:44]} Qg7 {[%emt 0:00:23]} 30. f4 {[%emt 0:00:28]} e5 {[%emt 0:00:30]} 31. Ref1 {[%emt 0:00:31]} exf4 {[%emt 0:00:39]} 32. Nxf4 {[%emt 0:00:14]} Nxf4 {[%emt 0:00:20]} 33. Rxf4 {[%emt 0:00:04]} Bf7 {[%emt 0:00:29]} 34. Rgf1 {[%emt 0:00:35]} Re8 {[%emt 0:00:19]} 35. Re4 {[%emt 0:00:38]} Rxe4 {[%emt 0:00:53]} 36. Qxe4 {[%emt 0:00:06]} Bd5 {[%emt 0:00:27]} 37. Qe8+ {[%emt 0:00:21]} Kh7 {[%emt 0:00:08]} 38. Rf4 {[%emt 0:00:34]} Qh6 {[%emt 0:00:46]} 39. Qe7+ {[%emt 0:00:14]} Kg8 {[%emt 0:00:39]} 40. Qxd6 {[%emt 0:00:19]} Qg5 {[%emt 0:00:29]} 41. Kc3 {[%emt 0:00:12]} Bf7 {[%emt 0:00:27]} 42. Qf6 {[%emt 0:00:40]} Qg3+ {[%emt 0:00:29]} 43. Kb2 {[%emt 0:00:05]} Bd5 {[%emt 0:00:33]} 44. Qd8+ {[%emt 0:00:15]} Kg7 {[%emt 0:00:21]} 45. Qe7+ {[%emt 0:00:22]} Kh8 {[%emt 0:00:21]} 46. Qe5+ {[%emt 0:00:20]} Kh7 {[%emt 0:00:22]} 47. Rf7+ {[%emt 0:00:04]} Bxf7 {[%emt 0:00:02]} 48. Qxg3 {[%emt 0:00:04]} 1-0